[Event "Late-Titled-Tuesday-Blitz-May-14-2024"]
[Site "Chess.com"]
[Date "2024.05.14"]
[Round "5"]
[White "Viktoker"]
[Black "Artem_Koval"]
[Result "1-0"]
[WhiteElo "2406"]
[BlackElo "2575"]
[TimeControl "180+1"]
[EndTime "14:56:03 PDT"]
[Termination "Viktoker won on time"]

1. d4 {[%clk 0:03:00.9]} 1... d5 {[%clk 0:01:54.1]} 2. c4 {[%clk 0:02:59.7]}
2... e6 {[%clk 0:01:54.2]} 3. Nf3 {[%clk 0:02:59.8]} 3... Nf6 {[%clk 0:01:54.4]}
4. g3 {[%clk 0:03:00.3]} 4... Be7 {[%clk 0:01:54.6]} 5. Bg2 {[%clk 0:02:59.7]}
5... O-O {[%clk 0:01:55.1]} 6. O-O {[%clk 0:03:00.6]} 6... dxc4 {[%clk
0:01:54.8]} 7. Na3 {[%clk 0:03:01.3]} 7... Bxa3 {[%clk 0:01:38.1]} 8. bxa3
{[%clk 0:03:02.2]} 8... Nbd7 {[%clk 0:01:33.7]} 9. a4 {[%clk 0:03:02]} 9... Re8
{[%clk 0:01:31.8]} 10. Qc2 {[%clk 0:02:54.6]} 10... e5 {[%clk 0:01:27]} 11. Qxc4
{[%clk 0:02:49.4]} 11... e4 {[%clk 0:01:22.8]} 12. Ng5 {[%clk 0:02:41.8]} 12...
Qe7 {[%clk 0:01:20.1]} 13. Qxc7 {[%clk 0:02:32.8]} 13... h6 {[%clk 0:01:03]} 14.
Nh3 {[%clk 0:02:20.6]} 14... Nd5 {[%clk 0:01:00.5]} 15. Qc2 {[%clk 0:02:17.8]}
15... N7f6 {[%clk 0:00:57.9]} 16. Nf4 {[%clk 0:02:14.2]} 16... Bf5 {[%clk
0:00:47.2]} 17. Nxd5 {[%clk 0:02:12.5]} 17... Nxd5 {[%clk 0:00:48.1]} 18. Qb3
{[%clk 0:02:11.7]} 18... Qd7 {[%clk 0:00:40.3]} 19. Be3 {[%clk 0:02:00.6]} 19...
Bg4 {[%clk 0:00:34.7]} 20. Rfe1 {[%clk 0:01:51.7]} 20... Rab8 {[%clk 0:00:34.9]}
21. Rac1 {[%clk 0:01:46.5]} 21... Rec8 {[%clk 0:00:34.7]} 22. Rc5 {[%clk
0:01:42.8]} 22... Be6 {[%clk 0:00:29.3]} 23. Bxe4 {[%clk 0:01:18.1]} 23... Rxc5
{[%clk 0:00:16.9]} 24. dxc5 {[%clk 0:01:16.9]} 24... Nf6 {[%clk 0:00:17.6]} 25.
Qd3 {[%clk 0:01:10.7]} 25... Qxa4 {[%clk 0:00:17.7]} 26. Bf3 {[%clk 0:01:06.9]}
26... Qxa2 {[%clk 0:00:17.7]} 27. Qd6 {[%clk 0:01:05.6]} 27... Re8 {[%clk
0:00:12.7]} 28. Bxb7 {[%clk 0:01:04]} 28... Bd5 {[%clk 0:00:09.2]} 29. Bxd5
{[%clk 0:00:59.6]} 29... Nxd5 {[%clk 0:00:10.1]} 30. c6 {[%clk 0:00:45.7]} 30...
Nxe3 {[%clk 0:00:09.6]} 31. fxe3 {[%clk 0:00:45.2]} 31... Qc4 {[%clk 0:00:06.3]}
32. Qd7 {[%clk 0:00:37]} 32... Qe6 {[%clk 0:00:04.5]} 33. Qxe6 {[%clk
0:00:31.9]} 33... fxe6 {[%clk 0:00:05.4]} 34. Ra1 {[%clk 0:00:19.2]} 34... Rc8
{[%clk 0:00:03.3]} 35. Ra6 {[%clk 0:00:14.5]} 35... Rc7 {[%clk 0:00:02.9]} 36.
Kf2 {[%clk 0:00:14.4]} 36... Kf7 {[%clk 0:00:03.4]} 37. Kf3 {[%clk 0:00:15]}
37... Ke7 {[%clk 0:00:03.3]} 38. Ke4 {[%clk 0:00:15.4]} 38... Kd6 {[%clk
0:00:03.7]} 39. Kd4 {[%clk 0:00:15.4]} 39... Rxc6 {[%clk 0:00:02.7]} 40. Rxa7
{[%clk 0:00:14.5]} 1-0

[Event "Late-Titled-Tuesday-Blitz-May-14-2024"]
[Site "Chess.com"]
[Date "2024.05.14"]
[Round "5"]
[White "AlexOstrovskiy"]
[Black "yobdc"]
[Result "1-0"]
[WhiteElo "2721"]
[BlackElo "2495"]
[TimeControl "180+1"]
[EndTime "14:56:07 PDT"]
[Termination "AlexOstrovskiy won by checkmate"]

1. e4 {[%clk 0:03:00.9]} 1... c5 {[%clk 0:02:59]} 2. Nc3 {[%clk 0:03:00.3]} 2...
a6 {[%clk 0:02:58.3]} 3. g3 {[%clk 0:02:58.6]} 3... b5 {[%clk 0:02:58.4]} 4. Bg2
{[%clk 0:02:56]} 4... Bb7 {[%clk 0:02:58.8]} 5. Nge2 {[%clk 0:02:50.9]} 5... Nf6
{[%clk 0:02:58.6]} 6. O-O {[%clk 0:02:46.6]} 6... b4 {[%clk 0:02:55.8]} 7. Nd5
{[%clk 0:02:46.6]} 7... e6 {[%clk 0:02:54.1]} 8. Nxf6+ {[%clk 0:02:45.7]} 8...
gxf6 {[%clk 0:02:55]} 9. d4 {[%clk 0:02:44.1]} 9... cxd4 {[%clk 0:02:49.8]} 10.
Nxd4 {[%clk 0:02:45]} 10... Nc6 {[%clk 0:02:49.4]} 11. Nxc6 {[%clk 0:02:39.5]}
11... Bxc6 {[%clk 0:02:48.5]} 12. Qh5 {[%clk 0:02:40.1]} 12... Qb6 {[%clk
0:02:33.6]} 13. Be3 {[%clk 0:02:33.4]} 13... Qb5 {[%clk 0:02:27.6]} 14. Qh4
{[%clk 0:02:33.2]} 14... Be7 {[%clk 0:02:24.4]} 15. Bd4 {[%clk 0:02:17.9]} 15...
e5 {[%clk 0:02:16]} 16. Be3 {[%clk 0:02:15.3]} 16... h5 {[%clk 0:01:39.4]} 17.
Rad1 {[%clk 0:02:01.8]} 17... Qc4 {[%clk 0:01:34.5]} 18. Rd2 {[%clk 0:01:52]}
18... Qxa2 {[%clk 0:01:33.5]} 19. b3 {[%clk 0:01:49.8]} 19... Qa5 {[%clk
0:01:25.1]} 20. f4 {[%clk 0:01:36.9]} 20... Qb5 {[%clk 0:00:37.6]} 21. fxe5
{[%clk 0:01:32.2]} 21... fxe5 {[%clk 0:00:37.2]} 22. Bg5 {[%clk 0:01:26.2]}
22... Qc5+ {[%clk 0:00:36.4]} 23. Kh1 {[%clk 0:01:25.8]} 23... Bxg5 {[%clk
0:00:18]} 24. Qxg5 {[%clk 0:01:26.7]} 24... h4 {[%clk 0:00:10.5]} 25. gxh4
{[%clk 0:01:22.5]} 25... Qe7 {[%clk 0:00:10]} 26. Rf5 {[%clk 0:01:09.5]} 26...
d6 {[%clk 0:00:05.2]} 27. Rf6 {[%clk 0:01:04.7]} 27... O-O-O {[%clk 0:00:04.7]}
28. Qf5+ {[%clk 0:00:44.1]} 28... Bd7 {[%clk 0:00:04.8]} 29. Qf1 {[%clk
0:00:44.8]} 29... Be6 {[%clk 0:00:04.1]} 30. Qxa6+ {[%clk 0:00:44.5]} 30... Qb7
{[%clk 0:00:04.2]} 31. Qa5 {[%clk 0:00:16.9]} 31... Rxh4 {[%clk 0:00:04.1]} 32.
c3 {[%clk 0:00:15.5]} 32... Rdh8 {[%clk 0:00:04]} 33. cxb4 {[%clk 0:00:13.5]}
33... Rxh2+ {[%clk 0:00:03.6]} 34. Kg1 {[%clk 0:00:14.2]} 34... Kd7 {[%clk
0:00:03.1]} 35. Rff2 {[%clk 0:00:12.3]} 35... Ke7 {[%clk 0:00:03.1]} 36. Rc2
{[%clk 0:00:11.3]} 36... R2h7 {[%clk 0:00:01.5]} 37. Rc7+ {[%clk 0:00:11.1]}
37... Qxc7 {[%clk 0:00:00.7]} 38. Qxc7+ {[%clk 0:00:12]} 38... Kf8 {[%clk
0:00:00.4]} 39. Qxd6+ {[%clk 0:00:12.2]} 39... Kg7 {[%clk 0:00:00.9]} 40. Qe7
{[%clk 0:00:12.5]} 40... Rg8 {[%clk 0:00:01.2]} 41. Qf6+ {[%clk 0:00:11.5]}
41... Kf8 {[%clk 0:00:01.2]} 42. Qxe6 {[%clk 0:00:11.8]} 42... Rhg7 {[%clk
0:00:00.8]} 43. Qc8+ {[%clk 0:00:09.2]} 43... Ke7 {[%clk 0:00:01.2]} 44. Qc7+
{[%clk 0:00:10.1]} 44... Ke6 {[%clk 0:00:01.5]} 45. Kf1 {[%clk 0:00:10.1]} 45...
Rg3 {[%clk 0:00:01.2]} 46. Qxf7+ {[%clk 0:00:09.2]} 46... Kd6 {[%clk 0:00:01.2]}
47. Rf6# {[%clk 0:00:09.9]} 1-0

[Event "Late-Titled-Tuesday-Blitz-May-14-2024"]
[Site "Chess.com"]
[Date "2024.05.14"]
[Round "5"]
[White "lilylg"]
[Black "albayo"]
[Result "0-1"]
[WhiteElo "2211"]
[BlackElo "2405"]
[TimeControl "180+1"]
[EndTime "14:56:07 PDT"]
[Termination "albayo won on time"]

1. d4 {[%clk 0:03:00.9]} 1... d5 {[%clk 0:02:57.6]} 2. c4 {[%clk 0:03:00.8]}
2... e6 {[%clk 0:02:57.8]} 3. Nf3 {[%clk 0:02:59.1]} 3... c6 {[%clk 0:02:51.9]}
4. g3 {[%clk 0:02:59.2]} 4... dxc4 {[%clk 0:02:48.2]} 5. Bg2 {[%clk 0:02:51.4]}
5... b5 {[%clk 0:02:47.3]} 6. O-O {[%clk 0:02:48.5]} 6... Bb7 {[%clk 0:02:46.8]}
7. a4 {[%clk 0:02:48.5]} 7... Nd7 {[%clk 0:02:43]} 8. b3 {[%clk 0:02:37.3]} 8...
cxb3 {[%clk 0:02:40.7]} 9. Qxb3 {[%clk 0:02:36.7]} 9... a6 {[%clk 0:02:41.2]}
10. Bb2 {[%clk 0:02:27.8]} 10... Ngf6 {[%clk 0:02:39.8]} 11. Ne5 {[%clk
0:02:26]} 11... Qb6 {[%clk 0:02:28.7]} 12. a5 {[%clk 0:02:16.7]} 12... Qc7
{[%clk 0:02:21.1]} 13. Rc1 {[%clk 0:02:09.2]} 13... Nxe5 {[%clk 0:02:11.6]} 14.
dxe5 {[%clk 0:02:07.6]} 14... Nd7 {[%clk 0:02:11.5]} 15. f4 {[%clk 0:01:41.8]}
15... c5 {[%clk 0:02:05.7]} 16. Nd2 {[%clk 0:01:34]} 16... Bxg2 {[%clk
0:02:02.6]} 17. Kxg2 {[%clk 0:01:34.1]} 17... c4 {[%clk 0:01:56.7]} 18. Qf3
{[%clk 0:01:31.9]} 18... Rd8 {[%clk 0:01:49.4]} 19. Ne4 {[%clk 0:01:29.4]} 19...
Nc5 {[%clk 0:01:36.4]} 20. Nd6+ {[%clk 0:01:19.3]} 20... Bxd6 {[%clk 0:01:24.6]}
21. exd6 {[%clk 0:01:19.3]} 21... Qxd6 {[%clk 0:01:25]} 22. Rd1 {[%clk
0:01:18.7]} 22... Qxd1 {[%clk 0:01:20.8]} 23. Rxd1 {[%clk 0:01:18]} 23... Rxd1
{[%clk 0:01:20.9]} 24. Qc6+ {[%clk 0:01:14.3]} 24... Nd7 {[%clk 0:01:17.9]} 25.
Qc8+ {[%clk 0:01:13.6]} 25... Ke7 {[%clk 0:01:16.5]} 26. Qxh8 {[%clk 0:01:13.5]}
26... Rd2 {[%clk 0:00:59.4]} 27. Ba3+ {[%clk 0:01:01.8]} 27... Kf6 {[%clk
0:00:51.7]} 28. Qd8+ {[%clk 0:01:01.2]} 28... Kf5 {[%clk 0:00:52.3]} 29. Qg5+
{[%clk 0:00:19.5]} 29... Ke4 {[%clk 0:00:51.2]} 30. Qg4 {[%clk 0:00:18.4]} 30...
c3 {[%clk 0:00:39.2]} 31. f5+ {[%clk 0:00:11.4]} 31... Kd5 {[%clk 0:00:35]} 32.
Qf3+ {[%clk 0:00:09.6]} 32... Kc4 {[%clk 0:00:31.9]} 33. Qe4+ {[%clk 0:00:04.9]}
33... Kb3 {[%clk 0:00:31]} 34. Qb4+ {[%clk 0:00:05.1]} 34... Kc2 {[%clk
0:00:29.4]} 35. Kf2 {[%clk 0:00:05.2]} 35... exf5 {[%clk 0:00:28.4]} 36. Ke3
{[%clk 0:00:03.8]} 36... Ne5 {[%clk 0:00:26.4]} 37. Qc5 {[%clk 0:00:03.1]} 37...
Nc4+ {[%clk 0:00:26.2]} 38. Kf2 {[%clk 0:00:03.6]} 38... Kb3 {[%clk 0:00:14.7]}
39. Qb4+ {[%clk 0:00:03.4]} 39... Kc2 {[%clk 0:00:14.5]} 40. Qc5 {[%clk
0:00:02.9]} 40... Rd1 {[%clk 0:00:13.1]} 41. Qxf5+ {[%clk 0:00:02.5]} 41... Kb3
{[%clk 0:00:12.8]} 42. Bc5 {[%clk 0:00:02.5]} 42... c2 {[%clk 0:00:12.5]} 43.
Qf3+ {[%clk 0:00:02.1]} 43... Kb2 {[%clk 0:00:11.7]} 0-1

[Event "Late-Titled-Tuesday-Blitz-May-14-2024"]
[Site "Chess.com"]
[Date "2024.05.14"]
[Round "5"]
[White "VacheH009"]
[Black "tarno17"]
[Result "1-0"]
[WhiteElo "2547"]
[BlackElo "2221"]
[TimeControl "180+1"]
[EndTime "14:56:09 PDT"]
[Termination "VacheH009 won on time"]

1. d4 {[%clk 0:03:00.9]} 1... d5 {[%clk 0:02:58.5]} 2. c4 {[%clk 0:02:58.1]}
2... e6 {[%clk 0:02:58.9]} 3. Nc3 {[%clk 0:02:56.4]} 3... Nf6 {[%clk 0:02:59.4]}
4. cxd5 {[%clk 0:02:53.8]} 4... exd5 {[%clk 0:02:59.5]} 5. Bg5 {[%clk
0:02:54.4]} 5... Be7 {[%clk 0:02:59.9]} 6. e3 {[%clk 0:02:54.9]} 6... O-O {[%clk
0:03:00.3]} 7. Qc2 {[%clk 0:02:55.3]} 7... h6 {[%clk 0:03:00.7]} 8. Bh4 {[%clk
0:02:54.9]} 8... c6 {[%clk 0:02:56.5]} 9. Bd3 {[%clk 0:02:54.9]} 9... Nbd7
{[%clk 0:02:53.7]} 10. Nf3 {[%clk 0:02:54.7]} 10... b6 {[%clk 0:02:46.2]} 11.
O-O {[%clk 0:02:53.3]} 11... Bb7 {[%clk 0:02:46.6]} 12. Rfd1 {[%clk 0:02:52]}
12... Rc8 {[%clk 0:02:44.4]} 13. Rac1 {[%clk 0:02:51.6]} 13... Nh5 {[%clk
0:02:28.6]} 14. Bxe7 {[%clk 0:02:48.4]} 14... Qxe7 {[%clk 0:02:29.5]} 15. Qa4
{[%clk 0:02:43.2]} 15... a5 {[%clk 0:02:11.9]} 16. a3 {[%clk 0:02:36.7]} 16...
Nhf6 {[%clk 0:01:52.3]} 17. Ne2 {[%clk 0:02:30.8]} 17... Ne4 {[%clk 0:01:46.3]}
18. Bxe4 {[%clk 0:02:29.4]} 18... dxe4 {[%clk 0:01:46.6]} 19. Nd2 {[%clk
0:02:27.6]} 19... Nf6 {[%clk 0:01:40]} 20. Qb3 {[%clk 0:02:20]} 20... b5 {[%clk
0:01:12.4]} 21. Qc3 {[%clk 0:01:48.6]} 21... b4 {[%clk 0:01:01]} 22. Qc5 {[%clk
0:01:46.7]} 22... Qxc5 {[%clk 0:00:55]} 23. Rxc5 {[%clk 0:01:47.6]} 23... Ba6
{[%clk 0:00:49.6]} 24. Ng3 {[%clk 0:01:44.6]} 24... bxa3 {[%clk 0:00:42.3]} 25.
Rxa5 {[%clk 0:01:44.2]} 25... Bd3 {[%clk 0:00:30.9]} 26. Rxa3 {[%clk 0:01:14.4]}
26... Rb8 {[%clk 0:00:28.1]} 27. b3 {[%clk 0:01:06.1]} 27... Rb4 {[%clk
0:00:13.3]} 28. Rc1 {[%clk 0:01:05.5]} 28... Rc8 {[%clk 0:00:12.3]} 29. Rc5
{[%clk 0:01:01.9]} 29... Nd7 {[%clk 0:00:06]} 30. Rca5 {[%clk 0:00:57.6]} 30...
Rb5 {[%clk 0:00:02.3]} 31. Ra8 {[%clk 0:00:54.7]} 31... Rxa8 {[%clk 0:00:01.7]}
32. Rxa8+ {[%clk 0:00:55.6]} 32... Kh7 {[%clk 0:00:02.4]} 33. Ra7 {[%clk
0:00:54.7]} 33... Nf6 {[%clk 0:00:02.2]} 34. Rxf7 {[%clk 0:00:52.9]} 34... Ra5
{[%clk 0:00:02.8]} 35. h4 {[%clk 0:00:51.7]} 35... Ra1+ {[%clk 0:00:03.4]} 36.
Ndf1 {[%clk 0:00:44.8]} 36... Ng4 {[%clk 0:00:02.5]} 37. Rf4 {[%clk 0:00:40.9]}
37... Bxf1 {[%clk 0:00:01.8]} 38. Nxf1 {[%clk 0:00:37.3]} 38... Nf6 {[%clk
0:00:02.2]} 39. g4 {[%clk 0:00:28.8]} 39... Rb1 {[%clk 0:00:01.6]} 40. Kg2
{[%clk 0:00:27.8]} 40... Rxb3 {[%clk 0:00:01.5]} 41. Ng3 {[%clk 0:00:27.1]}
41... Rb2 {[%clk 0:00:00.7]} 42. Nxe4 {[%clk 0:00:23.5]} 42... Nd5 {[%clk
0:00:01.3]} 43. Rf3 {[%clk 0:00:23.9]} 43... Re2 {[%clk 0:00:00.5]} 44. Kf1
{[%clk 0:00:20.9]} 44... Rc2 {[%clk 0:00:00.4]} 45. Rf7 {[%clk 0:00:19.1]} 45...
Nb4 {[%clk 0:00:00.3]} 46. h5 {[%clk 0:00:16.3]} 1-0

[Event "Late-Titled-Tuesday-Blitz-May-14-2024"]
[Site "Chess.com"]
[Date "2024.05.14"]
[Round "5"]
[White "subham777"]
[Black "TheWiscoIndian"]
[Result "0-1"]
[WhiteElo "2535"]
[BlackElo "2239"]
[TimeControl "180+1"]
[EndTime "14:56:12 PDT"]
[Termination "TheWiscoIndian won on time"]

1. e4 {[%clk 0:02:59.8]} 1... e6 {[%clk 0:03:00]} 2. Nf3 {[%clk 0:02:59.6]} 2...
d5 {[%clk 0:03:00.2]} 3. Nc3 {[%clk 0:02:59.4]} 3... dxe4 {[%clk 0:02:59.4]} 4.
Nxe4 {[%clk 0:02:59]} 4... Nd7 {[%clk 0:03:00.1]} 5. d4 {[%clk 0:02:58.9]} 5...
Ngf6 {[%clk 0:03:00.5]} 6. Ng3 {[%clk 0:02:58.9]} 6... Be7 {[%clk 0:02:57.8]} 7.
Bd3 {[%clk 0:02:58.6]} 7... b6 {[%clk 0:02:56.8]} 8. O-O {[%clk 0:02:58.9]} 8...
Bb7 {[%clk 0:02:57.1]} 9. Re1 {[%clk 0:02:59.3]} 9... c5 {[%clk 0:02:55.4]} 10.
c3 {[%clk 0:02:56.7]} 10... cxd4 {[%clk 0:02:54]} 11. cxd4 {[%clk 0:02:56.6]}
11... Rc8 {[%clk 0:02:45.3]} 12. Bf4 {[%clk 0:02:53.3]} 12... Nd5 {[%clk
0:02:43.7]} 13. Bd2 {[%clk 0:02:47.9]} 13... N7f6 {[%clk 0:02:41.8]} 14. Ne5
{[%clk 0:02:46.7]} 14... O-O {[%clk 0:02:20.2]} 15. a3 {[%clk 0:02:39.1]} 15...
a6 {[%clk 0:02:07.6]} 16. Nh5 {[%clk 0:02:12.3]} 16... b5 {[%clk 0:02:00.6]} 17.
Nxf6+ {[%clk 0:01:56.9]} 17... Nxf6 {[%clk 0:02:01.5]} 18. Bc3 {[%clk
0:01:54.2]} 18... Qd5 {[%clk 0:01:58.5]} 19. f3 {[%clk 0:01:46]} 19... Rfd8
{[%clk 0:01:39.5]} 20. Qe2 {[%clk 0:01:45.3]} 20... Qd6 {[%clk 0:01:29.9]} 21.
Rad1 {[%clk 0:01:33.9]} 21... Nd5 {[%clk 0:01:29.6]} 22. Bd2 {[%clk 0:01:27]}
22... Qb6 {[%clk 0:01:20.4]} 23. Qf2 {[%clk 0:01:14.1]} 23... Bf6 {[%clk
0:01:15.6]} 24. f4 {[%clk 0:01:00.1]} 24... a5 {[%clk 0:01:10.3]} 25. Kh1 {[%clk
0:00:51]} 25... Ba6 {[%clk 0:01:02]} 26. Be4 {[%clk 0:00:46.5]} 26... b4 {[%clk
0:00:56.7]} 27. axb4 {[%clk 0:00:45.6]} 27... Nxb4 {[%clk 0:00:50.2]} 28. Be3
{[%clk 0:00:42.8]} 28... Nd5 {[%clk 0:00:48.2]} 29. Bc1 {[%clk 0:00:28.8]} 29...
Bb7 {[%clk 0:00:40.4]} 30. g4 {[%clk 0:00:24.5]} 30... Nb4 {[%clk 0:00:36.9]}
31. Bxb7 {[%clk 0:00:14]} 31... Qxb7+ {[%clk 0:00:35.9]} 32. Qg2 {[%clk
0:00:13.9]} 32... Qxg2+ {[%clk 0:00:34.5]} 33. Kxg2 {[%clk 0:00:14.8]} 33...
Rc2+ {[%clk 0:00:33]} 34. Kg3 {[%clk 0:00:12.5]} 34... Na2 {[%clk 0:00:23.8]}
35. Bd2 {[%clk 0:00:05.8]} 35... Rxb2 {[%clk 0:00:19.7]} 36. Bxa5 {[%clk
0:00:06.1]} 36... Rd5 {[%clk 0:00:18.2]} 37. Nc4 {[%clk 0:00:03.4]} 37... Rb3+
{[%clk 0:00:17.1]} 38. Kg2 {[%clk 0:00:03.8]} 38... g6 {[%clk 0:00:14.6]} 39. g5
{[%clk 0:00:04.2]} 39... Bxd4 {[%clk 0:00:15.1]} 40. Re2 {[%clk 0:00:02]} 40...
Nc3 {[%clk 0:00:14.3]} 41. Red2 {[%clk 0:00:01.7]} 41... Nxd1 {[%clk 0:00:13.6]}
42. Rxd1 {[%clk 0:00:01.1]} 42... Rbb5 {[%clk 0:00:11.5]} 43. Be1 {[%clk
0:00:00.7]} 43... Rbc5 {[%clk 0:00:09.3]} 44. Ra1 {[%clk 0:00:01.2]} 44... Rxc4
{[%clk 0:00:09.3]} 0-1

[Event "Late-Titled-Tuesday-Blitz-May-14-2024"]
[Site "Chess.com"]
[Date "2024.05.14"]
[Round "5"]
[White "Chessdemon2019"]
[Black "osielchesslover2011"]
[Result "0-1"]
[WhiteElo "2452"]
[BlackElo "2254"]
[TimeControl "180+1"]
[EndTime "14:56:12 PDT"]
[Termination "osielchesslover2011 won by checkmate"]

1. c4 {[%clk 0:02:58.5]} 1... Nf6 {[%clk 0:02:59.4]} 2. Nc3 {[%clk 0:02:58.4]}
2... g6 {[%clk 0:02:59.6]} 3. e4 {[%clk 0:02:58]} 3... Bg7 {[%clk 0:03:00.3]} 4.
e5 {[%clk 0:02:58.2]} 4... Ng8 {[%clk 0:02:57.6]} 5. d4 {[%clk 0:02:58.5]} 5...
d6 {[%clk 0:02:57.6]} 6. f4 {[%clk 0:02:58.8]} 6... Nd7 {[%clk 0:02:56.4]} 7.
Nf3 {[%clk 0:02:56.6]} 7... c5 {[%clk 0:02:56.8]} 8. exd6 {[%clk 0:02:53.9]}
8... exd6 {[%clk 0:02:56.5]} 9. d5 {[%clk 0:02:50.2]} 9... Ngf6 {[%clk
0:02:56.3]} 10. Be2 {[%clk 0:02:49.5]} 10... O-O {[%clk 0:02:55.8]} 11. O-O
{[%clk 0:02:49.7]} 11... Re8 {[%clk 0:02:56.2]} 12. Bd3 {[%clk 0:02:46.4]} 12...
a6 {[%clk 0:02:55.7]} 13. Bd2 {[%clk 0:02:42.3]} 13... Ng4 {[%clk 0:02:54.5]}
14. Re1 {[%clk 0:02:37]} 14... f5 {[%clk 0:02:47.9]} 15. h3 {[%clk 0:02:30.3]}
15... Ngf6 {[%clk 0:02:45.6]} 16. Ng5 {[%clk 0:02:29.8]} 16... Nb6 {[%clk
0:02:40.1]} 17. Qf3 {[%clk 0:02:26]} 17... h6 {[%clk 0:02:36.1]} 18. Ne6 {[%clk
0:02:25.9]} 18... Bxe6 {[%clk 0:02:34.9]} 19. dxe6 {[%clk 0:02:25.5]} 19... Qc8
{[%clk 0:02:33.7]} 20. e7 {[%clk 0:02:23]} 20... Qd7 {[%clk 0:02:29.6]} 21. Qe2
{[%clk 0:02:02.8]} 21... Kf7 {[%clk 0:02:18.4]} 22. Nd5 {[%clk 0:01:46.6]} 22...
Nbxd5 {[%clk 0:02:14.5]} 23. cxd5 {[%clk 0:01:46.7]} 23... Rxe7 {[%clk
0:02:13.8]} 24. Qf3 {[%clk 0:01:46.9]} 24... Rae8 {[%clk 0:02:11.3]} 25. Rxe7+
{[%clk 0:01:45.2]} 25... Rxe7 {[%clk 0:02:09.4]} 26. Bc3 {[%clk 0:01:45.4]}
26... b5 {[%clk 0:02:03.3]} 27. a3 {[%clk 0:01:45]} 27... a5 {[%clk 0:01:53.6]}
28. b4 {[%clk 0:01:32.5]} 28... axb4 {[%clk 0:00:45.8]} 29. axb4 {[%clk
0:01:32.4]} 29... cxb4 {[%clk 0:00:45.6]} 30. Bd4 {[%clk 0:01:32.7]} 30... Qe8
{[%clk 0:00:43.7]} 31. Kh2 {[%clk 0:01:30.8]} 31... Kg8 {[%clk 0:00:40.2]} 32.
Ra6 {[%clk 0:01:27]} 32... Ne4 {[%clk 0:00:32.7]} 33. Bxg7 {[%clk 0:01:21.5]}
33... Kxg7 {[%clk 0:00:30]} 34. Rb6 {[%clk 0:01:07.2]} 34... Nc3 {[%clk
0:00:20.3]} 35. Rxd6 {[%clk 0:01:00.3]} 35... Re3 {[%clk 0:00:19.5]} 36. Qf1
{[%clk 0:01:00.7]} 36... Qe7 {[%clk 0:00:15.5]} 37. Rb6 {[%clk 0:00:54.9]} 37...
b3 {[%clk 0:00:11.4]} 38. d6 {[%clk 0:00:50.7]} 38... Qa7 {[%clk 0:00:11]} 39.
Rc6 {[%clk 0:00:48.6]} 39... Nd5 {[%clk 0:00:10]} 40. Bxb5 {[%clk 0:00:43.8]}
40... b2 {[%clk 0:00:09.7]} 41. Bc4 {[%clk 0:00:17.6]} 41... Qa1 {[%clk
0:00:06.3]} 42. d7 {[%clk 0:00:12]} 42... Qxf1 {[%clk 0:00:06.1]} 43. Bxf1
{[%clk 0:00:11.8]} 43... b1=Q {[%clk 0:00:05.8]} 44. d8=Q {[%clk 0:00:10.4]}
44... Qxf1 {[%clk 0:00:06.4]} 45. Qxd5 {[%clk 0:00:10.5]} 45... Qxf4+ {[%clk
0:00:05.6]} 46. Kg1 {[%clk 0:00:09.4]} 46... Re1# {[%clk 0:00:05.8]} 0-1

[Event "Late-Titled-Tuesday-Blitz-May-14-2024"]
[Site "Chess.com"]
[Date "2024.05.14"]
[Round "5"]
[White "adriangschnitzer"]
[Black "FredddieCroderg"]
[Result "0-1"]
[WhiteElo "2543"]
[BlackElo "2327"]
[TimeControl "180+1"]
[EndTime "14:56:13 PDT"]
[Termination "FredddieCroderg won by checkmate"]

1. d4 {[%clk 0:03:00.9]} 1... d5 {[%clk 0:02:46]} 2. c4 {[%clk 0:03:00.3]} 2...
e6 {[%clk 0:02:45.5]} 3. Nc3 {[%clk 0:03:00.6]} 3... Nf6 {[%clk 0:02:45.4]} 4.
Bg5 {[%clk 0:03:00.5]} 4... Be7 {[%clk 0:02:44.6]} 5. Nf3 {[%clk 0:03:00.5]}
5... O-O {[%clk 0:02:44]} 6. e3 {[%clk 0:03:01.1]} 6... Re8 {[%clk 0:02:42.3]}
7. Qc2 {[%clk 0:02:59.7]} 7... c5 {[%clk 0:02:39.6]} 8. O-O-O {[%clk 0:02:56.7]}
8... cxd4 {[%clk 0:02:38.7]} 9. Nxd4 {[%clk 0:02:54.4]} 9... Nc6 {[%clk
0:02:38.6]} 10. h4 {[%clk 0:02:51.4]} 10... Nxd4 {[%clk 0:02:37]} 11. Rxd4
{[%clk 0:02:52]} 11... e5 {[%clk 0:02:31.1]} 12. Rd2 {[%clk 0:02:33.9]} 12... d4
{[%clk 0:02:29.6]} 13. exd4 {[%clk 0:02:24.8]} 13... exd4 {[%clk 0:02:30.1]} 14.
Nb5 {[%clk 0:02:22.4]} 14... Bc5 {[%clk 0:02:19.7]} 15. Be3 {[%clk 0:02:13.7]}
15... dxe3 {[%clk 0:02:18.7]} 16. Rxd8 {[%clk 0:02:13.3]} 16... Rxd8 {[%clk
0:02:18.4]} 17. Bd3 {[%clk 0:01:29.4]} 17... exf2 {[%clk 0:02:14.2]} 18. Nc7
{[%clk 0:01:23]} 18... Rb8 {[%clk 0:02:12.4]} 19. Nd5 {[%clk 0:01:23.7]} 19...
Nxd5 {[%clk 0:02:08.4]} 20. cxd5 {[%clk 0:01:24.1]} 20... Be3+ {[%clk
0:02:07.5]} 21. Kb1 {[%clk 0:01:24.5]} 21... Bg4 {[%clk 0:01:58.7]} 22. Qc4
{[%clk 0:01:09.2]} 22... h5 {[%clk 0:01:51]} 23. Qe4 {[%clk 0:01:07.5]} 23...
Bh6 {[%clk 0:01:41.6]} 24. Rf1 {[%clk 0:00:47.2]} 24... Rbc8 {[%clk 0:01:34.4]}
25. a3 {[%clk 0:00:45.7]} 25... g6 {[%clk 0:01:14.3]} 26. Rxf2 {[%clk
0:00:42.6]} 26... Bf5 {[%clk 0:01:13.8]} 27. Rxf5 {[%clk 0:00:40.9]} 27... gxf5
{[%clk 0:01:13.4]} 28. Qxf5 {[%clk 0:00:41.8]} 28... Bg7 {[%clk 0:01:09.9]} 29.
Qxh5 {[%clk 0:00:40]} 29... Rd6 {[%clk 0:01:03.8]} 30. g4 {[%clk 0:00:28.2]}
30... Rb6 {[%clk 0:01:02.4]} 31. b4 {[%clk 0:00:19]} 31... Rc3 {[%clk
0:01:01.3]} 32. Qh7+ {[%clk 0:00:14.7]} 32... Kf8 {[%clk 0:01:00.6]} 33. Ka2
{[%clk 0:00:15.3]} 33... Rf6 {[%clk 0:00:54.1]} 34. h5 {[%clk 0:00:11.9]} 34...
Rf2+ {[%clk 0:00:52.9]} 35. Kb1 {[%clk 0:00:12.2]} 35... Rxa3 {[%clk 0:00:49.2]}
36. Kc1 {[%clk 0:00:09.9]} 36... Ra1+ {[%clk 0:00:28.3]} 37. Bb1 {[%clk
0:00:09.8]} 37... Rf1+ {[%clk 0:00:28.5]} 38. Kd2 {[%clk 0:00:08.8]} 38... Raxb1
{[%clk 0:00:28.3]} 39. h6 {[%clk 0:00:08.8]} 39... Rb2+ {[%clk 0:00:28]} 40. Ke3
{[%clk 0:00:07.5]} 40... Be5 {[%clk 0:00:26.9]} 41. d6 {[%clk 0:00:04.7]} 41...
Re1+ {[%clk 0:00:24.8]} 42. Kf3 {[%clk 0:00:04.4]} 42... Rf1+ {[%clk 0:00:17.6]}
43. Ke4 {[%clk 0:00:03.8]} 43... Re1+ {[%clk 0:00:17.5]} 44. Kf5 {[%clk
0:00:03.1]} 44... Rf2+ {[%clk 0:00:15.3]} 45. Kg5 {[%clk 0:00:03.5]} 45... Bf6+
{[%clk 0:00:11]} 46. Kh5 {[%clk 0:00:03.7]} 46... Rh2# {[%clk 0:00:10.6]} 0-1